bitfinex/quotes_ETHUSD_20241004
["timestamp","ask_amount","ask_price","bid_price","bid_amount"]
[1728047766861,4.1708,2397.7,2397.5,0.09248949]
[1728047767140,4.17083,2397.6,2397.5,0.09248949]
[1728047767768,4.1708,2397.7,2397.5,0.09248949]
[1728047768372,4.17079,2397.7,2397.5,0.09248949]
[1728047768576,8.34162,2397.7,2397.5,0.09248949]
[1728047768940,4.17079,2397.7,2397.5,0.09248949]
[1728047769371,4.17078,2397.7,2397.5,0.09248949]
[1728047770149,4.17083,2397.6,2397.5,0.09248949]
[1728047770358,5.004991,2397.6,2397.5,0.09248949]
[1728047770664,4.17166,2397.2,2396.8,0.7909]
[1728047770990,4.17139,2397.3,2396.9,4.17205]
[1728047771143,6.35655081,2397.6,2397.1,0.83]
[1728047771475,2.18559081,2397.9,2397.5,0.83]
[1728047771679,4.17018,2398.0,2397.5,0.83]
[1728047771974,2.18559081,2398.2,2397.6,4.17077]
[1728047772188,13.66533081,2398.3,2397.6,0.7844]
[1728047772380,13.66533081,2398.3,2397.8,4.17041]
[1728047772381,4.16987,2398.2,2397.8,4.17041]
[1728047772683,4.16987,2398.2,2397.9,0.8192]
[1728047774166,6.35617231,2398.3,2397.9,0.8192]
[1728047774373,4.16987,2398.2,2397.9,0.8192]
[1728047774555,4.16997,2398.1,2397.9,0.8192]
[1728047774956,2.18653231,2398.3,2397.9,0.8192]
[1728047775170,2.18653231,2398.3,2397.9,5.905391]
[1728047775171,4.16965,2398.3,2397.9,5.905391]
[1728047775372,2.18653231,2398.4,2398.0,4.17011]
[1728047775549,2.18653231,2398.5,2398.2,4.97776]
[1728047775746,6.35548231,2398.7,2398.3,4.16961]
[1728047776569,4.16909,2398.6,2398.2,4.97776]
[1728047776752,6.35547231,2398.7,2398.3,4.1696]
[1728047777092,4.16915,2398.6,2398.2,0.808]
[1728047777383,4.16928,2398.5,2398.2,0.808]
[1728047777711,4.16915,2398.6,2398.2,0.808]
[1728047777852,4.16929,2398.5,2398.2,0.808]
[1728047778193,4.16929,2398.5,2398.0,4.17]
[1728047778194,4.16963,2398.3,2398.0,0.8012]
[1728047778353,8.33941,2398.3,2398.0,0.8012]
[1728047778758,4.16963,2398.3,2398.0,0.8012]
[1728047778955,4.70635689,2398.5,2398.0,0.8012]
[1728047778956,4.16996,2398.1,2398.0,0.8012]
[1728047779288,4.17027,2398.0,2397.6,3.8012]
[1728047779586,4.16992,2398.2,2397.7,4.928]
[1728047780154,7.14499742,2398.5,2397.7,0.7575]
[1728047780155,4.16999,2398.1,2397.7,0.7575]
[1728047780352,4.17014,2398.0,2397.7,0.7575]
[1728047780655,4.17017,2398.0,2397.7,0.7575]
[1728047780856,4.17017,2398.0,2397.8,0.09209185]
[1728047781098,4.17031,2397.9,2397.8,0.09209185]
[1728047781310,4.16994,2398.2,2397.7,0.7575]
[1728047781517,4.16999,2398.1,2397.8,0.09209185]
[1728047781879,4.16969,2398.3,2397.8,5.00175482]
[1728047782080,4.16959,2398.4,2398.1,0.8049]
[1728047782274,6.3562679,2398.6,2398.2,4.16967]
[1728047782512,4.16919,2398.6,2398.3,0.7958]
[1728047782713,4.1693,2398.5,2398.3,0.7958]
[1728047782874,4.16981,2398.2,2398.1,0.7958]
[1728047783496,4.16965,2398.3,2398.1,0.7958]
[1728047783685,8.33939,2398.3,2398.1,0.7958]
[1728047784083,4.16965,2398.3,2398.1,0.7958]
[1728047786118,4.16972,2398.3,2397.8,3.7763]
[1728047786424,4.16972,2398.3,2397.9,4.17029]
[1728047786718,8.33949,2398.3,2397.8,7.94668]
[1728047786920,4.16948,2398.4,2397.9,4.1702]
[1728047787116,8.33877,2398.5,2398.1,0.79]
[1728047787741,4.16946,2398.4,2398.1,0.79]
[1728047788516,4.16969,2398.3,2398.1,0.79]
[1728047789922,2.18652367,2398.6,2398.1,0.79]
[1728047790138,4.16979,2398.2,2398.1,0.79]
[1728047790437,4.16979,2398.2,2398.1,0.0915755]
[1728047790594,4.16971,2398.3,2398.1,0.0915755]
[1728047790929,4.16948,2398.4,2398.0,4.17011]
[1728047791135,4.16934,2398.5,2398.2,0.09144234]
[1728047791432,4.16942,2398.5,2398.3,0.773]
[1728047791591,4.16944,2398.4,2398.3,0.09130722]
[1728047791787,4.16944,2398.4,2398.1,0.8088]
[1728047791989,4.16946,2398.4,2398.1,0.8088]
[1728047792189,4.16933,2398.5,2398.2,0.09143047]
[1728047792451,4.16952,2398.4,2398.2,0.09143047]
[1728047792589,4.16962,2398.3,2398.2,0.09143047]
[1728047792789,4.16962,2398.3,2397.9,0.7943]
[1728047793023,4.16962,2398.3,2397.9,4.96452]
[1728047793223,4.16989,2398.2,2398.0,0.09168889]
[1728047793432,4.16996,2398.1,2398.0,0.09168889]
[1728047793731,4.16986,2398.2,2398.0,0.09168889]
[1728047794930,4.16982,2398.2,2398.0,0.09168889]
[1728047795632,5.003749,2398.2,2398.0,0.09168889]
[1728047795926,4.17019,2398.0,2397.7,0.7892]
[1728047796291,4.16996,2398.1,2397.7,4.95976]
[1728047796707,4.17,2398.1,2397.7,4.95979]
[1728047797603,4.17003,2398.1,2397.7,0.7892]
[1728047797803,8.34012,2398.1,2397.7,0.7892]
[1728047798024,4.17014,2398.0,2397.7,0.7892]
[1728047801233,4.17038,2397.9,2397.7,0.7892]
[1728047801799,5.0875259,2398.0,2397.7,0.7892]
[1728047802229,4.17014,2398.0,2397.7,0.7892]
[1728047802946,4.17067,2397.7,2397.5,0.8116]
[1728047803340,4.17064,2397.8,2397.5,0.8116]
[1728047803832,4.17064,2397.8,2397.6,0.09219001]
[1728047804242,4.17034,2397.9,2397.6,0.09219001]
[1728047804540,4.17031,2397.9,2397.6,0.09219001]
[1728047804701,5.003879,2398.2,2397.6,0.09219001]
[1728047804897,4.17016,2398.0,2397.6,4.26297001]
[1728047805634,4.17032,2397.9,2397.6,0.09219001]
[1728047807240,4.17016,2398.0,2397.6,4.26300001]
[1728047807746,4.17016,2398.0,2397.6,0.09219001]
[1728047807905,4.17034,2397.9,2397.6,0.09219001]
[1728047808251,4.1705,2397.8,2397.6,0.09219001]
[1728047808450,4.17066,2397.7,2397.6,0.09219001]
[1728047809459,4.17033,2397.9,2397.6,0.09219001]
[1728047810309,4.17051,2397.8,2397.6,0.09219001]
[1728047810848,4.17066,2397.7,2397.6,0.09219001]
[1728047812664,1.606416,2397.7,2397.1,0.8079]
[1728047812955,4.17129,2397.4,2397.1,0.8079]
[1728047813524,4.17137,2397.3,2397.1,0.8079]
[1728047813857,4.17137,2397.3,2397.0,0.7626]
[1728047814974,4.17155,2397.2,2397.0,0.7626]
[1728047815391,4.1712,2397.4,2396.8,4.94949]
[1728047815594,4.17139,2397.3,2396.9,4.17205]
[1728047816392,4.17115,2397.5,2396.9,4.17205]
[1728047816393,7.71077584,2397.7,2397.0,4.17187]
[1728047816595,4.1711,2397.5,2397.1,4.99118]
[1728047816796,4.17086,2397.6,2397.2,4.1715]
[1728047817218,4.17068,2397.7,2397.3,4.1713]
[1728047817598,4.17068,2397.7,2397.2,4.1715]
[1728047817599,4.17087,2397.6,2397.2,4.1715]
[1728047818118,4.17087,2397.6,2397.1,4.99122]
[1728047818119,4.17104,2397.5,2397.1,4.99122]
[1728047818459,4.17127,2397.4,2397.1,0.8196]
[1728047818660,4.17136,2397.3,2397.1,0.8196]
[1728047819308,4.17121,2397.4,2397.1,0.8196]
[1728047819665,4.17138,2397.3,2397.1,0.8196]
[1728047820668,8.3429,2397.3,2397.1,0.8196]
[1728047820977,4.1712,2397.4,2397.1,0.8196]
[1728047821380,4.17069,2397.7,2397.3,4.17128]
[1728047821588,4.17052,2397.8,2397.4,0.8156]
[1728047821903,4.17052,2397.8,2397.2,0.798]
[1728047821904,4.1711,2397.5,2397.2,0.798]
[1728047822089,4.17125,2397.4,2397.2,0.798]
[1728047822269,4.17135,2397.3,2396.8,3.8308]
[1728047822463,4.17135,2397.3,2396.8,5.00292]
[1728047822464,4.1716,2397.2,2396.8,5.00292]
[1728047822688,4.17135,2397.3,2396.9,4.17197]
[1728047823031,4.17135,2397.3,2396.8,5.00292]
[1728047823032,4.17154,2397.2,2396.8,5.00292]
[1728047823523,4.17139,2397.3,2396.9,4.17191]
[1728047823929,4.17139,2397.3,2396.8,5.503172]
[1728047824235,4.17139,2397.3,2396.8,9.675262]
[1728047824445,4.17154,2397.2,2396.8,5.503292]
[1728047824736,4.17154,2397.2,2396.8,5.003]
[1728047824887,4.17139,2397.3,2396.9,4.17198]
[1728047825617,4.17155,2397.2,2396.8,5.00295]
[1728047825816,4.17155,2397.2,2396.8,9.17509]
[1728047826017,4.17137,2397.3,2396.9,4.2653455]
[1728047826707,4.17137,2397.3,2396.9,4.1719]
[1728047826941,3.91695689,2397.5,2396.8,0.8308]
[1728047827143,4.1718,2397.1,2397.0,0.0933122]
[1728047827346,4.1718,2397.1,2396.9,0.0934455]
[1728047827347,4.17188,2397.0,2396.9,0.0934455]
[1728047827554,4.17188,2397.0,2396.8,0.8308]
[1728047828009,4.17188,2397.0,2396.6,4.987]
[1728047828212,4.17188,2397.0,2396.6,9.1595]
[1728047828553,4.1718,2397.1,2396.6,4.987]
[1728047828710,4.17191,2397.0,2396.6,4.987]
[1728047829049,4.17191,2397.0,2396.6,4.98698]
[1728047829510,4.1718,2397.1,2396.6,4.98698]
[1728047829511,4.17177,2397.1,2396.7,4.17239]
[1728047829710,5.47957769,2397.1,2396.7,4.17239]
[1728047830158,4.9712,2397.4,2396.8,4.1722]
[1728047830380,0.7999,2397.4,2397.0,4.97867]
[1728047830540,4.97112,2397.4,2397.0,4.97867]
[1728047830877,4.97115,2397.4,2397.0,4.97866]
[1728047831179,8.34258,2397.4,2397.0,4.97866]
[1728047831482,4.1715,2397.3,2397.0,0.8068]
[1728047835888,4.17127,2397.4,2397.0,4.97866]
[1728047836191,4.17142,2397.3,2397.0,0.8068]
[1728047836687,4.17142,2397.3,2397.0,4.97868]
[1728047836897,4.17108,2397.5,2397.1,4.17167]
[1728047837116,4.17125,2397.4,2397.0,5.893682]
[1728047838057,1.46199661,2397.6,2397.0,0.8068]
[1728047838259,3.91695689,2397.3,2396.6,0.8152]
[1728047838490,4.1723,2396.8,2396.6,0.8152]
[1728047838804,4.1723,2396.8,2396.1,3.0]
[1728047838805,8.08949689,2396.7,2396.1,4.99431]
[1728047838975,4.1726,2396.6,2396.2,4.17324]
[1728047839303,4.17243,2396.7,2396.2,4.17312]
[1728047839599,4.1726,2396.6,2396.2,4.17327]
[1728047840161,4.17243,2396.7,2396.3,4.17307]
[1728047840709,4.1726,2396.6,2396.1,0.8209]
[1728047841001,3.91695689,2396.3,2395.9,0.784]
[1728047841308,0.8173,2396.4,2395.6,0.784]
[1728047841309,4.1738,2395.9,2395.6,0.784]
[1728047841457,8.09040689,2396.1,2395.6,0.784]
[1728047841803,4.1732,2396.3,2395.8,4.17388]
[1728047841956,4.99035,2396.4,2395.8,4.17388]
[1728047842161,7.31,2396.5,2396.0,4.1736]
[1728047842162,4.17282,2396.5,2396.0,4.1736]
[1728047842358,4.17266,2396.6,2396.0,4.1736]
[1728047842559,0.88932169,2396.5,2396.1,4.17336]
[1728047842788,4.17259,2396.6,2396.1,4.17336]
[1728047843000,4.17277,2396.5,2396.1,4.17336]
[1728047843307,4.74865689,2396.9,2396.3,4.17308]
[1728047843498,5.0039,2396.9,2396.4,4.17278]
[1728047844011,4.17224,2396.8,2396.4,4.17278]
[1728047844923,3.91695689,2397.1,2396.4,4.17278]
[1728047844924,12.29352,2397.2,2396.7,0.8289]
[1728047845103,4.17132,2397.4,2396.8,4.17211]
[1728047845286,4.17129,2397.4,2396.8,4.17211]
[1728047845607,4.17129,2397.4,2397.0,4.17188]
[1728047846163,4.17136,2397.3,2396.8,8.34425]
[1728047846369,4.17136,2397.3,2396.8,8.34424]
[1728047846564,4.17136,2397.3,2396.9,4.17198]
[1728047846814,4.82502661,2397.6,2397.0,4.96819]
[1728047846978,4.17102,2397.5,2397.0,4.96819]
[1728047847180,4.1712,2397.4,2397.0,4.96819]
[1728047847599,4.17143,2397.3,2397.0,0.7964]
[1728047847988,4.17153,2397.2,2397.1,0.09362271]
[1728047848223,5.005826,2397.2,2397.1,0.09362271]
[1728047848513,4.17217,2396.9,2396.4,4.9936]
[1728047849076,4.1723,2396.8,2396.4,0.8207]
[1728047849314,4.17242,2396.7,2396.4,0.8207]
[1728047849485,4.73615689,2396.9,2396.2,0.8151]
[1728047849486,4.17284,2396.5,2396.2,0.8151]
[1728047849680,0.834472,2396.6,2396.2,4.98835]
[1728047849911,4.17243,2396.7,2396.3,4.17307]
[1728047850319,4.17243,2396.7,2396.2,4.98835]
[1728047850320,4.17233,2396.8,2396.2,4.98835]
[1728047850476,4.17233,2396.8,2396.4,4.17291]
[1728047850678,4.73615689,2396.9,2396.2,0.8151]
[1728047850904,4.17258,2396.6,2396.2,4.98836]
[1728047851377,8.34508,2396.7,2396.2,4.98826]
[1728047851577,4.17264,2396.6,2396.2,4.98826]
[1728047852178,4.17242,2396.7,2396.3,4.17309]
[1728047852730,4.17257,2396.6,2396.2,0.8151]
[1728047853215,4.17257,2396.6,2396.2,4.98825]
[1728047853575,4.17229,2396.8,2396.2,1.731271]
[1728047853780,4.17229,2396.8,2396.2,4.98837]
[1728047853972,4.17247,2396.7,2396.2,4.98829]
[1728047854193,4.73615689,2396.9,2396.2,0.8151]
[1728047854194,8.90832689,2396.9,2396.2,0.8151]
[1728047854530,8.90832689,2396.9,2396.5,4.17274]
[1728047854531,4.17217,2396.9,2396.5,4.17274]
[1728047854814,4.17225,2396.8,2396.4,4.17277]
[1728047855117,8.34491,2396.7,2396.3,4.17308]
[1728047855317,4.1726,2396.6,2396.2,4.98836]
[1728047855723,4.1724,2396.7,2396.2,4.98836]
[1728047856010,8.34491,2396.7,2396.3,0.09457036]
[1728047856314,9.64705669,2396.7,2396.2,9.16146]
[1728047856528,1.51589538,2397.0,2396.4,0.094437]
[1728047856728,4.17249,2396.7,2396.3,0.09457036]
[1728047856889,4.17249,2396.7,2396.2,9.16145]
[1728047857084,4.17249,2396.7,2396.3,4.26760036]
[1728047857328,4.17228,2396.8,2396.4,4.17288]
[1728047857533,4.17228,2396.8,2396.3,4.26760036]
[1728047857705,4.17228,2396.8,2396.5,0.0943195]
[1728047857905,4.17228,2396.8,2396.4,0.09445285]
[1728047858108,4.17228,2396.8,2396.6,0.09418616]
[1728047858303,2.18470095,2397.1,2396.6,4.96384]
[1728047858509,4.17172,2397.1,2396.7,4.26637284]
[1728047858935,4.12172,2397.1,2396.7,4.26637284]
[1728047859229,4.1719,2397.0,2396.7,0.09405284]
[1728047860408,4.17208,2396.9,2396.7,0.09405284]
[1728047860733,4.97242,2396.8,2396.7,0.09405284]
[1728047860891,6.27856569,2396.8,2396.7,0.09405284]
[1728047861096,4.17265,2396.6,2396.3,0.8048]
[1728047861298,4.17283,2396.5,2396.4,0.09441521]
[1728047861528,6.27870569,2396.8,2396.4,0.09441521]
[1728047861844,2.18648142,2397.2,2396.8,0.8048]
[1728047862053,0.21864814,2397.1,2396.8,0.8048]
[1728047862336,4.17143,2397.3,2396.9,4.17196]
[1728047862948,4.17143,2397.3,2396.8,0.8048]
[1728047862949,4.17154,2397.2,2397.0,0.09365292]
[1728047863092,4.1717,2397.1,2397.0,0.09365292]
[1728047863287,4.1717,2397.1,2396.6,3.0]
[1728047863493,4.17206,2396.9,2396.7,0.0939518]
[1728047864141,4.99495,2397.2,2396.7,0.0939518]
[1728047864433,4.17189,2397.0,2396.7,0.0939518]
[1728047864796,4.17222,2396.8,2396.7,0.0939518]
[1728047865242,4.17222,2396.8,2396.3,0.8278]
[1728047865243,4.17263,2396.6,2396.3,0.8278]
[1728047865443,4.17276,2396.5,2396.3,0.8278]
[1728047865997,4.17303,2396.4,2396.0,5.00141]
[1728047866192,5.007277,2396.5,2396.0,0.8278]
[1728047866193,4.17314,2396.3,2396.0,0.8278]
[1728047866433,4.17423,2395.7,2395.3,4.17475]
[1728047866629,8.34846,2395.7,2395.2,4.95463]
[1728047866895,4.17423,2395.7,2395.2,4.95463]
[1728047867133,4.17393,2395.9,2395.3,4.17475]
[1728047867300,4.98301869,2395.9,2395.4,4.17463]
[1728047867509,4.17397,2395.8,2395.4,4.17463]
[1728047868034,4.17433,2395.6,2395.2,4.95464]
[1728047868233,4.17433,2395.6,2395.2,0.7797]
[1728047868435,4.17433,2395.6,2395.1,3.0]
[1728047868636,4.17476,2395.4,2395.1,3.0]
[1728047868808,4.17476,2395.4,2395.0,4.17533]
[1728047869941,8.34955,2395.4,2394.9,4.97035]
[1728047870140,4.17476,2395.4,2395.0,4.17528]
[1728047870345,8.34908,2395.5,2395.1,4.17517]
[1728047870504,4.17475,2395.4,2395.0,4.17536]
[1728047870702,4.17475,2395.4,2395.1,0.09292233]
[1728047871128,0.55708893,2395.5,2395.1,0.09292233]
[1728047871348,4.94121,2395.2,2395.1,0.09292233]
[1728047871554,4.94121,2395.2,2394.5,0.7786]
[1728047871555,4.17563,2394.9,2394.5,4.1762]
[1728047871737,4.17567,2394.9,2394.4,4.17641]
[1728047871943,4.17567,2394.9,2394.2,4.99212]
[1728047871944,4.17591,2394.7,2394.6,0.09358997]
[1728047872250,4.17572,2394.8,2394.5,0.09372354]
[1728047872460,5.010654,2394.9,2394.6,0.09358997]
[1728047872949,4.17581,2394.8,2394.7,0.09374]
[1728047873158,4.6769014,2394.8,2394.7,0.09374]
[1728047873315,4.94132,2395.2,2394.5,4.17615]
[1728047873627,4.94132,2395.2,2394.6,4.17597]
[1728047873628,4.1753,2395.1,2394.6,4.17597]
[1728047873814,4.1753,2395.1,2394.6,4.26991896]
[1728047875110,4.17538,2395.0,2394.6,0.09394896]
[1728047875306,4.17579,2394.8,2394.6,0.09394896]
[1728047875512,4.17648,2394.4,2393.9,4.17727]
[1728047875740,0.7565,2394.6,2393.8,0.7685]
[1728047875741,4.17677,2394.2,2393.8,0.7685]
[1728047875921,0.7565,2394.0,2393.2,0.7685]
[1728047876126,0.7565,2394.0,2392.5,4.82917671]
[1728047876127,4.178,2393.5,2393.0,4.17874]
[1728047876551,4.178,2393.5,2393.0,8.35751]
[1728047876760,4.178,2393.5,2393.0,4.17874]
[1728047877113,8.35608,2393.5,2393.0,4.17874]
[1728047877466,4.178,2393.5,2393.0,4.17874]
[1728047877818,4.1783,2393.4,2392.9,4.94752]
[1728047878016,4.1783,2393.4,2392.9,5.860182]
[1728047878356,4.178,2393.5,2393.0,4.17881]
[1728047878743,4.178,2393.5,2392.9,10.039122]
[1728047879077,4.17816,2393.4,2392.9,10.039122]
[1728047879380,4.178,2393.5,2393.0,4.17884]
[1728047879672,16.31647671,2393.9,2393.0,4.17884]
[1728047879673,11.48737,2393.9,2393.4,4.17805]
[1728047879845,15.66475,2393.9,2393.4,4.17805]
[1728047880271,4.17781,2393.6,2393.1,1.0038942]
[1728047880456,4.17801,2393.5,2392.9,4.94741]
[1728047880732,4.17855,2393.2,2392.7,4.17926]
[1728047881365,4.17868,2393.1,2392.6,0.7781]
[1728047881565,4.17923,2392.8,2392.3,4.93607]
[1728047881873,4.17942,2392.7,2392.3,0.7561]
[1728047882433,5.097905,2392.7,2392.1,4.18492806]
[1728047882741,4.17942,2392.7,2392.1,4.18492806]
[1728047882928,4.17973,2392.5,2392.1,4.18492806]
[1728047883160,0.8262,2392.9,2392.1,4.18492806]
[1728047883161,4.17925,2392.8,2392.3,4.17994]
[1728047883378,0.8262,2392.9,2392.4,4.17982]
[1728047883379,9.18453,2392.9,2392.4,4.17982]
[1728047883534,5.00534,2392.9,2392.4,4.17982]
[1728047883728,4.17914,2392.9,2392.3,4.17994]
[1728047883986,0.7699,2393.2,2392.3,4.59839881]
[1728047884128,4.17894,2393.0,2392.5,4.17968]
[1728047884333,0.7699,2393.2,2392.5,0.833]
[1728047884528,4.94849,2393.2,2392.7,4.1792]
[1728047884765,4.94849,2393.2,2392.8,4.1792]
[1728047884766,0.7699,2393.2,2392.8,4.1792]
[1728047884929,0.7699,2393.2,2392.7,4.1792]
[1728047884930,4.17856,2393.2,2392.7,4.1792]
[1728047885132,4.17846,2393.3,2392.8,4.17907]
[1728047885679,4.17818,2393.4,2392.9,4.179]
[1728047885982,4.17833,2393.3,2392.9,4.27026076]
[1728047886277,4.17817,2393.4,2392.9,4.27023076]
[1728047886435,4.94817,2393.5,2393.0,4.17883]
[1728047886861,4.17817,2393.4,2393.1,0.09105329]
[1728047887952,4.94817,2393.5,2393.1,0.09105329]
[1728047887953,4.17774,2393.7,2393.2,4.17847]
[1728047888156,4.17783,2393.6,2393.2,0.09091957]
[1728047888970,4.17781,2393.6,2393.2,0.09091957]
[1728047889679,4.17781,2393.6,2393.2,4.26941957]
[1728047889843,4.93326,2393.8,2393.3,4.17822]
[1728047890039,4.93326,2393.8,2393.2,4.26932957]
[1728047890040,4.17771,2393.7,2393.2,4.26932957]
[1728047890234,4.17771,2393.7,2393.4,0.09065217]
[1728047890463,9.11086,2393.8,2393.3,4.26909586]
[1728047890746,4.17778,2393.7,2393.4,0.09065217]
[1728047891039,4.17794,2393.6,2393.0,4.93137]
[1728047891246,4.17794,2393.6,2393.5,0.09051848]
[1728047891555,4.17886,2393.0,2392.4,0.8154]
[1728047891879,4.17859,2393.2,2392.7,4.17929]
[1728047892180,4.17859,2393.2,2392.8,4.17912]
[1728047892340,7.31,2393.5,2393.0,0.8277]
[1728047892540,4.17791,2393.6,2393.0,0.8277]
[1728047892882,4.17816,2393.4,2393.0,5.00653]
[1728047893073,4.99087,2393.8,2393.3,4.17821]
[1728047893379,4.17765,2393.7,2393.3,4.17821]
[1728047893738,4.99087,2393.8,2393.4,4.17813]
[1728047893943,4.99087,2393.8,2393.3,4.17821]
[1728047894166,2.043487,2393.8,2393.0,0.8277]
[1728047894381,4.17813,2393.5,2393.0,0.8277]
[1728047894604,4.17813,2393.5,2393.1,4.17867]
[1728047894810,4.17783,2393.6,2393.0,0.8277]
[1728047894811,4.17783,2393.6,2393.2,4.17848]
[1728047895106,4.178,2393.5,2393.1,4.17865]
[1728047895316,8.35579,2393.6,2393.1,4.17865]
[1728047895505,8.35579,2393.6,2393.2,4.17847]
[1728047895506,4.17783,2393.6,2393.2,4.17847]
[1728047896310,2.043487,2393.8,2393.2,4.17847]
[1728047896495,4.17781,2393.6,2393.2,4.17847]
[1728047897468,4.83280871,2393.7,2393.3,4.1783]
[1728047897699,4.83280871,2393.7,2393.2,4.17837]
[1728047898105,4.83280871,2393.7,2393.2,8.35677]
[1728047898309,0.65515871,2393.7,2393.2,0.500607]
[1728047898513,4.17798,2393.5,2393.1,4.17852]
[1728047898821,4.17793,2393.6,2393.1,4.17852]
[1728047898974,4.17808,2393.5,2393.1,4.17852]
[1728047899169,4.17827,2393.4,2393.0,0.8277]
[1728047899415,4.17822,2393.4,2392.8,4.17918]
[1728047899721,4.1785,2393.2,2392.8,4.17918]
[1728047900015,4.1785,2393.2,2392.7,0.7676]
[1728047900175,4.93784,2393.3,2392.8,8.35825]
[1728047900376,4.596112,2393.4,2392.7,0.7676]
[1728047900377,4.17829,2393.4,2392.9,4.17901]
[1728047900809,4.17829,2393.4,2393.0,0.0910488]
[1728047901007,4.17829,2393.4,2393.0,4.2698688]
[1728047902637,0.915134,2393.4,2393.0,0.0910488]
[1728047902912,8.35752,2393.1,2392.7,0.7676]
[1728047903126,4.17868,2393.1,2392.7,0.7676]
[1728047903330,8.35752,2393.1,2392.7,0.7676]
[1728047903480,4.17898,2393.0,2392.7,0.7676]
[1728047904319,0.835766,2392.9,2392.5,4.98343]
[1728047904523,0.7733,2393.1,2392.3,4.17994]
[1728047904685,4.17952,2392.7,2392.2,4.98403]
[1728047904880,4.17975,2392.5,2392.2,0.8038]
[1728047905123,4.17975,2392.5,2392.0,4.18059]
[1728047905398,4.677455,2392.5,2391.9,4.96484]
[1728047905549,4.17947,2392.7,2392.1,4.18037]
[1728047905550,4.17945,2392.7,2392.1,4.18037]
[1728047905705,4.17956,2392.6,2392.2,4.18018]
[1728047905905,8.35887,2392.7,2392.2,4.18018]
[1728047906349,4.17955,2392.6,2392.2,4.18018]
[1728047906907,0.7973,2392.8,2391.9,0.7842]
[1728047907255,4.17939,2392.7,2391.9,0.7842]
[1728047907550,4.18027,2392.2,2391.7,4.18098]
[1728047907709,4.18027,2392.2,2391.8,4.18088]
[1728047907911,4.18027,2392.2,2391.8,4.13088]
[1728047908154,4.1801,2392.3,2391.9,4.18069]
[1728047908358,4.17976,2392.5,2391.8,4.18082]
[1728047908566,12.31136,2392.6,2392.1,4.18028]
[1728047908861,11.48956,2392.6,2392.2,4.18024]
[1728047909026,4.17956,2392.6,2391.9,0.8092]
[1728047909236,4.17975,2392.5,2392.0,4.18057]
[1728047909542,4.17975,2392.5,2392.1,4.18042]
[1728047909543,4.597725,2392.5,2392.1,4.18042]
[1728047909779,0.417975,2392.5,2392.2,4.1802]
[1728047909921,0.417975,2392.5,2392.1,4.18033]
[1728047910120,4.1794,2392.7,2392.2,4.1801]
[1728047910383,4.17967,2392.6,2391.9,0.8092]
[1728047910610,4.17998,2392.4,2392.0,4.18051]
[1728047910724,4.18017,2392.3,2391.7,3.0]
[1728047910927,4.18017,2392.3,2391.9,4.18069]
[1728047911221,0.917449,2392.3,2391.9,4.18064]
[1728047911423,0.917449,2392.3,2392.0,4.18059]
[1728047911627,4.18029,2392.2,2391.7,4.93096]
[1728047911827,0.917449,2392.3,2392.0,4.18058]
[1728047912062,5.097529,2392.3,2391.9,4.1807]
[1728047912674,4.17991,2392.4,2392.0,4.18047]
[1728047912964,4.17974,2392.5,2392.1,4.18042]
[1728047913183,8.35961,2392.5,2392.1,4.18042]
[1728047913329,4.17974,2392.5,2392.1,4.18042]
[1728047914256,8.1234,2392.6,2392.2,4.93194]
[1728047914257,7.31,2392.6,2392.2,4.93194]
[1728047914442,4.17951,2392.7,2392.2,4.93186]
[1728047914838,4.17951,2392.7,2392.2,9.11201]
[1728047915039,4.17951,2392.7,2392.3,4.17999]
[1728047915961,6.930744,2392.8,2392.4,4.27207323]
[1728047916343,4.1795,2392.7,2392.4,0.09218323]
[1728047916701,4.8725744,2392.7,2392.5,0.09202572]
[1728047917178,4.8725744,2392.7,2392.3,4.18]
[1728047917332,4.8725744,2392.7,2392.6,0.09189194]
[1728047917846,9.0520944,2392.7,2392.6,0.09189194]
[1728047918164,0.6930744,2392.7,2392.2,0.7517]
[1728047918332,2.751524,2392.8,2392.2,0.7517]
[1728047918333,4.98391,2392.8,2392.2,0.7517]
[1728047918532,4.17956,2392.6,2392.2,4.93184]
[1728047918844,0.8046,2392.8,2392.3,0.09229135]
[1728047919035,4.17963,2392.6,2392.2,4.18021]
[1728047919372,4.17963,2392.6,2392.4,0.09215754]
[1728047919672,5.015629,2392.5,2392.1,4.1804]
[1728047919974,4.17991,2392.4,2392.0,4.18057]
[1728047922117,4.1803,2392.2,2391.8,4.18083]
[1728047922325,4.9757,2392.3,2391.9,4.18077]
[1728047922616,4.18028,2392.2,2391.8,4.18083]
[1728047924124,4.18063,2392.0,2391.6,7.18113]
[1728047924415,4.1806,2392.0,2391.6,7.18113]
[1728047924721,4.18044,2392.1,2391.7,4.18111]
[1728047925027,5.096062,2392.1,2391.7,4.18111]
[1728047925318,5.096062,2392.1,2391.3,4.96432]
[1728047925319,4.1812,2391.7,2391.3,4.96432]
[1728047925626,4.1808,2391.9,2391.5,4.18134]
[1728047925776,4.98519,2392.0,2391.6,4.18121]
[1728047925975,4.98463,2392.3,2391.9,4.18075]
[1728047926292,4.18022,2392.3,2391.8,4.96335]
[1728047926495,5.820179,2392.5,2392.0,4.18056]
[1728047926727,4.18008,2392.3,2391.9,4.18074]
[1728047927011,0.5820179,2392.4,2392.0,4.27328327]
[1728047927228,5.820149,2392.5,2392.0,8.45378327]
[1728047927524,4.18014,2392.3,2392.0,0.09282327]
[1728047927880,4.18035,2392.2,2392.0,0.09282327]
[1728047928077,4.18035,2392.2,2391.8,4.96341]
[1728047928273,4.18035,2392.2,2392.1,0.09268943]